[Event "European Online Club-ch-B 2021"]
[Site "Online"]
[Date "2021.03.27"]
[Round "7.4"]
[White "Nikel, Rastislav"]
[Black "Grochal, Joey"]
[Result "0-1"]
[ECO "B49"]
[WhiteElo "1984"]
[BlackElo "2335"]
[Annotator "NA"]
[PlyCount "70"]
[EventDate "2021.03.27"]
[EventType "team-tourn"]
[EventCountry "NET"]
[SourceTitle "playchess.com"]
[Source "ChessBase"]
[SourceQuality "1"]
[TimeControl "900+5"]

1. e4 {[%emt 0:00:00]} c5 {[%emt 0:00:03]} 2. Nf3 {[%emt 0:00:03]} e6 {[%emt 0:00:01]} 3. d4 {[%emt 0:00:01]} cxd4 {[%emt 0:00:00]} 4. Nxd4 {[%emt 0:00:03]} Nc6 {[%emt 0:00:01]} 5. Nc3 {[%emt 0:00:01]} Qc7 {[%emt 0:00:01]} 6. Be3 {[%emt 0:00:08]} a6 {[%emt 0:00:03]} 7. Be2 {[%emt 0:00:05]} Nf6 {[%emt 0:00:02]} 8. O-O {[%emt 0:00:02]} Bb4 {[%emt 0:00:02]} 9. f3 {[%emt 0:00:17]} O-O {[%emt 0:00:04]} 10. Qd3 {[%emt 0:00:08]} Ne5 {[%emt 0:00:16]} 11. Qd2 {[%emt 0:00:03]} d5 {[%emt 0:00:58]} 12. Bg5 {[%emt 0:02:59]} Nc4 {[%emt 0:04:02]} 13. Bxc4 {[%emt 0:00:04]} Qxc4 {[%emt 0:00:01]} 14. Bxf6 {[%emt 0:00:13]} gxf6 {[%emt 0:00:00]} 15. a3 {[%emt 0:00:46]} Bc5 {[%emt 0:00:18]} 16. Nce2 {[%emt 0:00:42]} e5 {[%emt 0:00:48]} 17. b3 {[%emt 0:00:13]} Bxd4+ {[%emt 0:00:04]} 18. Kh1 {[%emt 0:00:14]} Qc5 {[%emt 0:02:04]} 19. Qh6 {[%emt 0:01:47]} Qc6 {[%emt 0:02:17]} 20. exd5 {[%emt 0:00:17]} Qxc2 {[%emt 0:00:05]} 21. Qxf6 {[%emt 0:00:17]} Bxa1 {[%emt 0:00:42]} 22. Rxa1 {[%emt 0:01:20]} Qf5 {[%emt 0:00:08]} 23. Qd6 {[%emt 0:00:17]} Re8 {[%emt 0:00:27]} 24. Ng3 {[%emt 0:00:04]} Qg6 {[%emt 0:00:03]} 25. Qc7 {[%emt 0:00:20]} Bf5 {[%emt 0:00:22]} 26. d6 {[%emt 0:00:48]} Red8 {[%emt 0:00:50]} 27. Rd1 {[%emt 0:00:04]} Rd7 {[%emt 0:00:06]} 28. Qc5 {[%emt 0:00:07]} Qe6 {[%emt 0:00:23]} 29. Re1 {[%emt 0:00:46]} Re8 {[%emt 0:00:27]} 30. f4 {[%emt 0:00:03]} f6 {[%emt 0:00:04]} 31. fxe5 {[%emt 0:00:03]} fxe5 {[%emt 0:00:04]} 32. Rf1 {[%emt 0:01:28]} Bg6 {[%emt 0:00:05]} 33. h4 {[%emt 0:00:41]} Qg4 {[%emt 0:00:18]} 34. Rf3 {[%emt 0:01:24]} Qxh4+ {[%emt 0:00:03]} 35. Kg1 {[%emt 0:00:03]} Qd4+ {[%emt 0:00:01]} 0-1

[Event "European Online Club-ch-B 2021"]
[Site "Online"]
[Date "2021.03.27"]
[Round "7.5"]
[White "Gorodetzky, David"]
[Black "Edouard, Romain"]
[Result "1-0"]
[ECO "D02"]
[WhiteElo "2495"]
[BlackElo "2614"]
[Annotator "ChessBase"]
[PlyCount "109"]
[EventDate "2021.03.27"]
[EventType "team-tourn"]
[EventCountry "NET"]
[SourceTitle "playchess.com"]
[Source "ChessBase"]
[SourceQuality "1"]
[TimeControl "900+5"]

1. Nf3 {[%emt 0:00:00]} d5 {[%emt 0:00:07]} 2. g3 {[%emt 0:00:13]} g6 {[%emt 0:00:05]} 3. Bg2 {[%emt 0:00:13]} Bg7 {[%emt 0:00:01]} 4. d4 {[%emt 0:00:23]} Nh6 {[%emt 0:00:10]} 5. O-O {[%emt 0:00:08]} Nf5 {[%emt 0:00:03]} 6. c3 {[%emt 0:00:12]} O-O {[%emt 0:00:05]} 7. Bf4 {[%emt 0:00:22]} c6 {[%emt 0:00:02]} 8. Nbd2 {[%emt 0:00:10]} Nd6 {[%emt 0:00:02]} 9. Re1 {[%emt 0:00:18]} Bf5 {[%emt 0:00:11]} 10. Qb3 {[%emt 0:00:11]} b6 {[%emt 0:00:28]} 11. Ne5 {[%emt 0:00:15]} Qc8 {[%emt 0:00:13]} 12. c4 {[%emt 0:00:29]} dxc4 {[%emt 0:00:22]} 13. Ndxc4 {[%emt 0:00:08]} Be6 {[%emt 0:00:01]} 14. Qc3 {[%emt 0:02:16]} Nxc4 {[%emt 0:00:11]} 15. Nxc4 {[%emt 0:00:03]} Nd7 {[%emt 0:00:00]} 16. Red1 {[%emt 0:00:34]} c5 {[%emt 0:00:16]} 17. Rac1 {[%emt 0:00:36]} cxd4 {[%emt 0:00:12]} 18. Qa3 {[%emt 0:00:20]} Qc5 {[%emt 0:00:11]} 19. Bxa8 {[%emt 0:00:23]} Rxa8 {[%emt 0:00:00]} 20. Qxc5 {[%emt 0:01:24]} bxc5 {[%emt 0:00:00]} 21. b3 {[%emt 0:00:50]} Bd5 {[%emt 0:01:03]} 22. Bd2 {[%emt 0:01:41]} Rc8 {[%emt 0:00:21]} 23. e3 {[%emt 0:00:30]} Bf3 {[%emt 0:00:40]} 24. Re1 {[%emt 0:00:05]} d3 {[%emt 0:00:46]} 25. Bc3 {[%emt 0:00:50]} e5 {[%emt 0:00:30]} 26. Nd2 {[%emt 0:00:36]} Be2 {[%emt 0:00:05]} 27. f3 {[%emt 0:00:04]} Nb6 {[%emt 0:00:08]} 28. Kf2 {[%emt 0:00:47]} Nd5 {[%emt 0:00:06]} 29. e4 {[%emt 0:00:18]} Nxc3 {[%emt 0:00:14]} 30. Rxc3 {[%emt 0:00:00]} Bh6 {[%emt 0:00:03]} 31. Nc4 {[%emt 0:00:22]} f6 {[%emt 0:00:11]} 32. Rxe2 {[%emt 0:00:04]} dxe2 {[%emt 0:00:03]} 33. Kxe2 {[%emt 0:00:00]} Kf8 {[%emt 0:00:04]} 34. Rd3 {[%emt 0:00:09]} Ke7 {[%emt 0:00:02]} 35. Rd6 {[%emt 0:00:08]} Rc7 {[%emt 0:00:16]} 36. Ra6 {[%emt 0:00:08]} Bc1 {[%emt 0:00:07]} 37. Kd1 {[%emt 0:00:36]} Bh6 {[%emt 0:00:03]} 38. Kc2 {[%emt 0:00:06]} Bg5 {[%emt 0:00:23]} 39. h4 {[%emt 0:00:09]} Bh6 {[%emt 0:00:01]} 40. a4 {[%emt 0:00:16]} Bg7 {[%emt 0:01:20]} 41. Ne3 {[%emt 0:00:13]} Kf7 {[%emt 0:00:02]} 42. Nd5 {[%emt 0:00:09]} Rd7 {[%emt 0:00:05]} 43. Rc6 {[%emt 0:00:04]} h5 {[%emt 0:00:07]} 44. Rxc5 {[%emt 0:00:06]} g5 {[%emt 0:00:07]} 45. Rc7 {[%emt 0:00:46]} Rxc7+ {[%emt 0:00:03]} 46. Nxc7 {[%emt 0:00:00]} gxh4 {[%emt 0:00:01]} 47. gxh4 {[%emt 0:00:01]} Bh6 {[%emt 0:00:00]} 48. Nb5 {[%emt 0:00:03]} Be3 {[%emt 0:00:06]} 49. Nd6+ {[%emt 0:00:08]} Ke6 {[%emt 0:00:02]} 50. Nf5 {[%emt 0:00:01]} Bf2 {[%emt 0:00:02]} 51. Kd3 {[%emt 0:00:20]} Kf7 {[%emt 0:00:51]} 52. b4 {[%emt 0:00:17]} a6 {[%emt 0:00:03]} 53. a5 {[%emt 0:00:26]} Kf8 {[%emt 0:00:24]} 54. b5 {[%emt 0:00:19]} axb5 {[%emt 0:00:02]} 55. Ne3 {[%emt 0:00:01]} 1-0

[Event "European Online Club-ch-B 2021"]
[Site "Online"]
[Date "2021.03.27"]
[Round "7.7"]
[White "Parkhov, Yair"]
[Black "Sokolov, Andrei"]
[Result "1-0"]
[ECO "E39"]
[WhiteElo "2407"]
[BlackElo "2516"]
[Annotator "ChessBase"]
[PlyCount "59"]
[EventDate "2021.03.27"]
[EventType "team-tourn"]
[EventCountry "NET"]
[SourceTitle "playchess.com"]
[Source "ChessBase"]
[SourceQuality "1"]
[TimeControl "900+5"]

1. d4 {[%emt 0:00:00]} Nf6 {[%emt 0:00:07]} 2. c4 {[%emt 0:00:02]} e6 {[%emt 0:00:03]} 3. Nc3 {[%emt 0:00:01]} Bb4 {[%emt 0:00:02]} 4. Qc2 {[%emt 0:00:02]} c5 {[%emt 0:00:15]} 5. dxc5 {[%emt 0:00:02]} O-O {[%emt 0:00:06]} 6. Nf3 {[%emt 0:00:01]} Na6 {[%emt 0:00:28]} 7. g3 {[%emt 0:00:02]} Nxc5 {[%emt 0:00:21]} 8. Bg2 {[%emt 0:00:02]} Nce4 {[%emt 0:04:03]} 9. O-O {[%emt 0:00:03]} Nxc3 {[%emt 0:00:45]} 10. bxc3 {[%emt 0:00:02]} Be7 {[%emt 0:00:09]} 11. e4 {[%emt 0:00:02]} d6 {[%emt 0:00:14]} 12. e5 {[%emt 0:00:02]} dxe5 {[%emt 0:01:37]} 13. Nxe5 {[%emt 0:00:00]} Qa5 {[%emt 0:00:08]} 14. Qe2 {[%emt 0:00:58]} Nd7 {[%emt 0:00:22]} 15. Bf4 {[%emt 0:01:28]} Nc5 {[%emt 0:00:39]} 16. Rab1 {[%emt 0:03:11]} Qxc3 {[%emt 0:01:45]} 17. Rfc1 {[%emt 0:00:05]} Qa3 {[%emt 0:00:11]} 18. Rd1 {[%emt 0:01:35]} a5 {[%emt 0:01:04]} 19. Rb5 {[%emt 0:03:09]} Ra6 {[%emt 0:00:34]} 20. Bc1 {[%emt 0:00:13]} Qa4 {[%emt 0:00:05]} 21. Be3 {[%emt 0:00:07]} f6 {[%emt 0:02:00]} 22. Bxc5 {[%emt 0:00:33]} Bxc5 {[%emt 0:00:03]} 23. Rxc5 {[%emt 0:00:03]} fxe5 {[%emt 0:00:04]} 24. Rc7 {[%emt 0:00:49]} Qe8 {[%emt 0:00:53]} 25. Qxe5 {[%emt 0:00:09]} Qg6 {[%emt 0:00:47]} 26. Be4 {[%emt 0:00:05]} Qf6 {[%emt 0:00:12]} 27. Qxf6 {[%emt 0:00:20]} gxf6 {[%emt 0:00:02]} 28. Bxh7+ {[%emt 0:00:02]} Kh8 {[%emt 0:00:03]} 29. c5 {[%emt 0:01:00]} f5 {[%emt 0:00:13]} 30. Rd6 {[%emt 0:00:35]} 1-0

[Event "European Online Club-ch-B 2021"]
[Site "Online"]
[Date "2021.03.27"]
[Round "7.8"]
[White "Riff, Jean-Noel"]
[Black "Veinberg, Nimrod"]
[Result "1-0"]
[ECO "C95"]
[WhiteElo "2499"]
[BlackElo "2404"]
[Annotator "ChessBase"]
[PlyCount "105"]
[EventDate "2021.03.27"]
[EventType "team-tourn"]
[EventCountry "NET"]
[SourceTitle "playchess.com"]
[Source "ChessBase"]
[SourceQuality "1"]
[TimeControl "900+5"]

1. e4 {[%emt 0:00:00]} e5 {[%emt 0:00:02]} 2. Nf3 {[%emt 0:00:02]} Nc6 {[%emt 0:00:00]} 3. Bb5 {[%emt 0:00:02]} a6 {[%emt 0:00:02]} 4. Ba4 {[%emt 0:00:02]} Nf6 {[%emt 0:00:01]} 5. O-O {[%emt 0:00:02]} Be7 {[%emt 0:00:01]} 6. Re1 {[%emt 0:00:03]} b5 {[%emt 0:00:02]} 7. Bb3 {[%emt 0:00:02]} d6 {[%emt 0:00:03]} 8. c3 {[%emt 0:00:01]} O-O {[%emt 0:00:02]} 9. h3 {[%emt 0:00:02]} Bb7 {[%emt 0:00:03]} 10. d4 {[%emt 0:00:02]} Re8 {[%emt 0:00:02]} 11. Nbd2 {[%emt 0:00:06]} Bf8 {[%emt 0:00:03]} 12. Bc2 {[%emt 0:00:02]} Nb8 {[%emt 0:01:04]} 13. a4 {[%emt 0:00:21]} Nbd7 {[%emt 0:00:27]} 14. Bd3 {[%emt 0:00:04]} c5 {[%emt 0:02:57]} 15. axb5 {[%emt 0:00:47]} axb5 {[%emt 0:00:03]} 16. Rxa8 {[%emt 0:00:03]} Qxa8 {[%emt 0:00:00]} 17. Bxb5 {[%emt 0:00:18]} exd4 {[%emt 0:00:10]} 18. cxd4 {[%emt 0:00:03]} Bxe4 {[%emt 0:00:21]} 19. dxc5 {[%emt 0:03:53]} Bxf3 {[%emt 0:00:46]} 20. Rxe8 {[%emt 0:00:04]} Qxe8 {[%emt 0:00:21]} 21. Nxf3 {[%emt 0:00:03]} dxc5 {[%emt 0:00:03]} 22. Bg5 {[%emt 0:00:19]} Qe6 {[%emt 0:00:12]} 23. b3 {[%emt 0:00:51]} Ne5 {[%emt 0:00:22]} 24. Bf4 {[%emt 0:01:37]} Nxf3+ {[%emt 0:02:34]} 25. Qxf3 {[%emt 0:00:04]} Qe1+ {[%emt 0:00:51]} 26. Kh2 {[%emt 0:00:03]} Qe4 {[%emt 0:00:12]} 27. Qxe4 {[%emt 0:00:30]} Nxe4 {[%emt 0:00:00]} 28. Be3 {[%emt 0:00:01]} Bd6+ {[%emt 0:00:17]} 29. g3 {[%emt 0:00:02]} Kf8 {[%emt 0:00:04]} 30. Kg2 {[%emt 0:00:02]} Ke7 {[%emt 0:00:05]} 31. Kf3 {[%emt 0:00:02]} Nf6 {[%emt 0:00:03]} 32. Bc4 {[%emt 0:00:07]} Nd7 {[%emt 0:00:05]} 33. Ke4 {[%emt 0:00:02]} Nf6+ {[%emt 0:00:03]} 34. Kd3 {[%emt 0:00:02]} Nd7 {[%emt 0:00:01]} 35. Bb5 {[%emt 0:00:06]} Nf6 {[%emt 0:00:32]} 36. Kc4 {[%emt 0:00:10]} Kd8 {[%emt 0:00:30]} 37. Bc6 {[%emt 0:00:15]} Kc7 {[%emt 0:00:01]} 38. Bd5 {[%emt 0:00:03]} Nd7 {[%emt 0:00:06]} 39. Kb5 {[%emt 0:00:10]} f6 {[%emt 0:00:20]} 40. f4 {[%emt 0:00:07]} g5 {[%emt 0:00:20]} 41. Be6 {[%emt 0:00:02]} gxf4 {[%emt 0:00:07]} 42. gxf4 {[%emt 0:00:07]} Nf8 {[%emt 0:02:45]} 43. f5 {[%emt 0:00:34]} Nxe6 {[%emt 0:00:05]} 44. fxe6 {[%emt 0:00:02]} f5 {[%emt 0:00:02]} 45. Bxc5 {[%emt 0:00:03]} Bg3 {[%emt 0:00:08]} 46. Kc4 {[%emt 0:00:05]} f4 {[%emt 0:00:52]} 47. b4 {[%emt 0:00:07]} f3 {[%emt 0:00:07]} 48. Kd3 {[%emt 0:00:01]} Kc6 {[%emt 0:00:21]} 49. b5+ {[%emt 0:00:10]} Kc7 {[%emt 0:00:13]} 50. b6+ {[%emt 0:00:08]} Kc6 {[%emt 0:00:01]} 51. e7 {[%emt 0:00:01]} Kd7 {[%emt 0:00:02]} 52. b7 {[%emt 0:00:04]} f2 {[%emt 0:00:18]} 53. Bxf2 {[%emt 0:00:04]} 1-0

[Event "European Online Club-ch-B 2021"]
[Site "Online"]
[Date "2021.03.27"]
[Round "7.9"]
[White "Efimov, Igor"]
[Black "Grandelius, Nils"]
[Result "0-1"]
[ECO "D00"]
[WhiteElo "2416"]
[BlackElo "2663"]
[Annotator "ChessBase"]
[PlyCount "98"]
[EventDate "2021.03.27"]
[EventType "team-tourn"]
[EventCountry "NET"]
[SourceTitle "playchess.com"]
[Source "ChessBase"]
[SourceQuality "1"]
[TimeControl "900+5"]

1. d4 {[%emt 0:00:00]} Nf6 {[%emt 0:00:05]} 2. Bg5 {[%emt 0:00:03]} d5 {[%emt 0:00:15]} 3. Bxf6 {[%emt 0:00:05]} exf6 {[%emt 0:00:10]} 4. Nd2 {[%emt 0:00:04]} Bd6 {[%emt 0:00:10]} 5. g3 {[%emt 0:00:03]} c6 {[%emt 0:00:07]} 6. Bg2 {[%emt 0:00:04]} Qb6 {[%emt 0:00:10]} 7. Nb3 {[%emt 0:00:04]} a5 {[%emt 0:00:02]} 8. a4 {[%emt 0:00:23]} Bg4 {[%emt 0:00:20]} 9. h3 {[%emt 0:00:22]} Bf5 {[%emt 0:00:18]} 10. e3 {[%emt 0:00:02]} Na6 {[%emt 0:00:17]} 11. c3 {[%emt 0:00:37]} Nc7 {[%emt 0:00:42]} 12. Ne2 {[%emt 0:00:06]} Ne6 {[%emt 0:00:01]} 13. g4 {[%emt 0:00:11]} Bg6 {[%emt 0:00:14]} 14. f4 {[%emt 0:00:05]} f5 {[%emt 0:00:45]} 15. Ng3 {[%emt 0:00:19]} fxg4 {[%emt 0:00:06]} 16. hxg4 {[%emt 0:00:01]} O-O-O {[%emt 0:00:45]} 17. Kf2 {[%emt 0:00:04]} Qc7 {[%emt 0:00:44]} 18. Nc1 {[%emt 0:01:26]} f6 {[%emt 0:01:12]} 19. Nd3 {[%emt 0:00:14]} Bf7 {[%emt 0:00:34]} 20. Nf5 {[%emt 0:00:05]} Bf8 {[%emt 0:00:11]} 21. b4 {[%emt 0:00:08]} g5 {[%emt 0:00:47]} 22. Qf3 {[%emt 0:00:20]} gxf4 {[%emt 0:00:04]} 23. exf4 {[%emt 0:00:13]} axb4 {[%emt 0:01:44]} 24. cxb4 {[%emt 0:00:07]} Bg6 {[%emt 0:00:01]} 25. Qe3 {[%emt 0:01:09]} Re8 {[%emt 0:00:05]} 26. Rhe1 {[%emt 0:00:22]} Bh6 {[%emt 0:02:15]} 27. Nxh6 {[%emt 0:00:10]} Bxd3 {[%emt 0:00:02]} 28. f5 {[%emt 0:00:18]} Nd8 {[%emt 0:01:27]} 29. Qg3 {[%emt 0:00:20]} Qg7 {[%emt 0:00:26]} 30. Qf4 {[%emt 0:00:21]} Re7 {[%emt 0:01:50]} 31. b5 {[%emt 0:00:14]} Rhe8 {[%emt 0:00:37]} 32. b6 {[%emt 0:00:28]} Be4 {[%emt 0:00:43]} 33. Bxe4 {[%emt 0:01:04]} Rxe4 {[%emt 0:00:00]} 34. Rxe4 {[%emt 0:00:03]} Rxe4 {[%emt 0:00:00]} 35. Qd6 {[%emt 0:00:04]} Re7 {[%emt 0:00:36]} 36. Re1 {[%emt 0:00:33]} Rd7 {[%emt 0:00:01]} 37. Qf4 {[%emt 0:00:03]} Qf8 {[%emt 0:00:03]} 38. Kg3 {[%emt 0:01:06]} Qa3+ {[%emt 0:00:04]} 39. Kh4 {[%emt 0:00:02]} Qf8 {[%emt 0:00:10]} 40. a5 {[%emt 0:00:26]} c5 {[%emt 0:00:04]} 41. dxc5 {[%emt 0:00:06]} d4 {[%emt 0:00:00]} 42. a6 {[%emt 0:00:06]} bxa6 {[%emt 0:00:06]} 43. Re6 {[%emt 0:00:22]} Qxc5 {[%emt 0:00:04]} 44. Rxf6 {[%emt 0:00:05]} d3 {[%emt 0:00:02]} 45. Qf3 {[%emt 0:00:06]} Qd5 {[%emt 0:00:06]} 46. Qf1 {[%emt 0:00:14]} Kb7 {[%emt 0:00:08]} 47. g5 {[%emt 0:00:43]} d2 {[%emt 0:00:05]} 48. Qd1 {[%emt 0:00:02]} Qe4+ {[%emt 0:00:03]} 49. Ng4 {[%emt 0:00:02]} Qe1+ {[%emt 0:00:02]} 0-1

[Event "European Online Club-ch-B 2021"]
[Site "Online"]
[Date "2021.03.27"]
[Round "7.10"]
[White "Svane, Rasmus"]
[Black "Bagheri, Amir"]
[Result "1/2-1/2"]
[ECO "A07"]
[WhiteElo "2613"]
[BlackElo "2348"]
[Annotator "ChessBase"]
[PlyCount "162"]
[EventDate "2021.03.27"]
[EventType "team-tourn"]
[EventCountry "NET"]
[SourceTitle "playchess.com"]
[Source "ChessBase"]
[SourceQuality "1"]
[TimeControl "900+5"]

1. Nf3 {[%emt 0:00:00]} Nf6 {[%emt 0:00:09]} 2. g3 {[%emt 0:00:02]} d5 {[%emt 0:00:03]} 3. Bg2 {[%emt 0:00:02]} c6 {[%emt 0:00:03]} 4. O-O {[%emt 0:00:02]} Bg4 {[%emt 0:00:02]} 5. h3 {[%emt 0:00:01]} Bxf3 {[%emt 0:00:15]} 6. Bxf3 {[%emt 0:00:00]} Nbd7 {[%emt 0:00:01]} 7. d3 {[%emt 0:00:01]} e5 {[%emt 0:00:05]} 8. e4 {[%emt 0:00:02]} dxe4 {[%emt 0:00:05]} 9. dxe4 {[%emt 0:00:00]} Bc5 {[%emt 0:00:02]} 10. Nd2 {[%emt 0:00:02]} O-O {[%emt 0:00:10]} 11. a4 {[%emt 0:00:02]} a5 {[%emt 0:00:04]} 12. Qe2 {[%emt 0:00:03]} Qc7 {[%emt 0:00:20]} 13. Rd1 {[%emt 0:00:14]} Rfd8 {[%emt 0:00:37]} 14. Kg2 {[%emt 0:00:24]} Nf8 {[%emt 0:00:08]} 15. Nb3 {[%emt 0:00:20]} Rxd1 {[%emt 0:00:36]} 16. Qxd1 {[%emt 0:00:00]} Bb6 {[%emt 0:00:20]} 17. Bg5 {[%emt 0:00:16]} N6d7 {[%emt 0:00:35]} 18. Bg4 {[%emt 0:02:32]} Nc5 {[%emt 0:00:03]} 19. Qf3 {[%emt 0:01:49]} Nfe6 {[%emt 0:00:20]} 20. Bd2 {[%emt 0:01:00]} Rd8 {[%emt 0:00:37]} 21. Nxc5 {[%emt 0:01:19]} Bxc5 {[%emt 0:00:51]} 22. Rd1 {[%emt 0:00:55]} Rd4 {[%emt 0:04:29]} 23. Bxe6 {[%emt 0:01:39]} fxe6 {[%emt 0:00:03]} 24. Bc3 {[%emt 0:00:02]} Rxd1 {[%emt 0:00:46]} 25. Qxd1 {[%emt 0:00:00]} Bb4 {[%emt 0:00:48]} 26. Qh5 {[%emt 0:00:25]} Qd7 {[%emt 0:01:20]} 27. Qxe5 {[%emt 0:00:42]} Bxc3 {[%emt 0:00:03]} 28. Qxc3 {[%emt 0:00:00]} b6 {[%emt 0:00:13]} 29. Qd3 {[%emt 0:00:13]} Qe7 {[%emt 0:00:22]} 30. Qd4 {[%emt 0:00:11]} c5 {[%emt 0:00:06]} 31. Qe5 {[%emt 0:00:07]} Qd7 {[%emt 0:00:33]} 32. b3 {[%emt 0:01:36]} Qc6 {[%emt 0:00:04]} 33. Kf3 {[%emt 0:00:31]} h6 {[%emt 0:00:03]} 34. h4 {[%emt 0:00:28]} Kh7 {[%emt 0:00:03]} 35. Ke3 {[%emt 0:00:15]} Qd7 {[%emt 0:00:15]} 36. Ke2 {[%emt 0:00:08]} Qc6 {[%emt 0:00:25]} 37. f3 {[%emt 0:00:07]} b5 {[%emt 0:00:04]} 38. axb5 {[%emt 0:00:23]} Qxb5+ {[%emt 0:00:02]} 39. Kd2 {[%emt 0:01:06]} Qb6 {[%emt 0:00:08]} 40. Kc3 {[%emt 0:00:35]} a4 {[%emt 0:00:49]} 41. bxa4 {[%emt 0:00:16]} Qb4+ {[%emt 0:00:16]} 42. Kd3 {[%emt 0:00:03]} c4+ {[%emt 0:00:04]} 43. Ke2 {[%emt 0:00:03]} Qxa4 {[%emt 0:00:01]} 44. Qc3 {[%emt 0:00:05]} Qb5 {[%emt 0:00:15]} 45. g4 {[%emt 0:00:06]} e5 {[%emt 0:00:06]} 46. h5 {[%emt 0:00:16]} Qa4 {[%emt 0:00:18]} 47. Kd1 {[%emt 0:00:11]} Qb5 {[%emt 0:00:09]} 48. Kc1 {[%emt 0:00:03]} Qc5 {[%emt 0:00:09]} 49. Kb2 {[%emt 0:00:14]} g6 {[%emt 0:00:27]} 50. Qd2 {[%emt 0:00:11]} gxh5 {[%emt 0:00:38]} 51. gxh5 {[%emt 0:00:00]} Kg7 {[%emt 0:00:06]} 52. Qd7+ {[%emt 0:00:03]} Kf6 {[%emt 0:00:01]} 53. Qf5+ {[%emt 0:00:02]} Ke7 {[%emt 0:00:04]} 54. Qh7+ {[%emt 0:00:02]} Ke8 {[%emt 0:00:04]} 55. Qg8+ {[%emt 0:00:05]} Ke7 {[%emt 0:00:02]} 56. Qg7+ {[%emt 0:00:04]} Ke8 {[%emt 0:00:02]} 57. Qg6+ {[%emt 0:00:02]} Ke7 {[%emt 0:00:02]} 58. Qh7+ {[%emt 0:00:11]} Ke8 {[%emt 0:00:03]} 59. Qg8+ {[%emt 0:00:02]} Ke7 {[%emt 0:00:02]} 60. Qg7+ {[%emt 0:00:05]} Ke8 {[%emt 0:00:01]} 61. Kc3 {[%emt 0:00:19]} Qd4+ {[%emt 0:00:15]} 62. Kb4 {[%emt 0:00:02]} Qb2+ {[%emt 0:00:41]} 63. Kc5 {[%emt 0:00:02]} Qd4+ {[%emt 0:00:03]} 64. Kb5 {[%emt 0:00:04]} Qb2+ {[%emt 0:00:02]} 65. Kc6 {[%emt 0:00:02]} Qxc2 {[%emt 0:00:09]} 66. Qxe5+ {[%emt 0:00:02]} Kf7 {[%emt 0:00:02]} 67. Qf5+ {[%emt 0:00:01]} Ke7 {[%emt 0:00:02]} 68. Qh7+ {[%emt 0:00:03]} Ke8 {[%emt 0:00:01]} 69. Qg8+ {[%emt 0:00:07]} Ke7 {[%emt 0:00:03]} 70. Qg7+ {[%emt 0:00:01]} Ke8 {[%emt 0:00:01]} 71. Qe5+ {[%emt 0:00:09]} Kf7 {[%emt 0:00:05]} 72. Qf5+ {[%emt 0:00:10]} Ke7 {[%emt 0:00:02]} 73. Qd7+ {[%emt 0:00:03]} Kf8 {[%emt 0:00:07]} 74. Qd6+ {[%emt 0:00:02]} Kf7 {[%emt 0:00:04]} 75. Qd7+ {[%emt 0:00:11]} Kf8 {[%emt 0:00:03]} 76. Qd6+ {[%emt 0:00:02]} Kf7 {[%emt 0:00:01]} 77. Qf4+ {[%emt 0:00:15]} Ke8 {[%emt 0:00:05]} 78. Qb8+ {[%emt 0:00:04]} Kf7 {[%emt 0:00:02]} 79. Qc7+ {[%emt 0:00:02]} Ke8 {[%emt 0:00:03]} 80. Qc8+ {[%emt 0:00:06]} Kf7 {[%emt 0:00:03]} 81. Qd7+ {[%emt 0:00:02]} Kf8 {[%emt 0:00:02]} 1/2-1/2

[Event "European Online Club-ch-B 2021"]
[Site "Online"]
[Date "2021.03.27"]
[Round "7.11"]
[White "Villegas, Pierre"]
[Black "Heinemann, Thies"]
[Result "1/2-1/2"]
[ECO "E42"]
[WhiteElo "2367"]
[BlackElo "2502"]
[Annotator "ChessBase"]
[PlyCount "78"]
[EventDate "2021.03.27"]
[EventType "team-tourn"]
[EventCountry "NET"]
[SourceTitle "playchess.com"]
[Source "ChessBase"]
[SourceQuality "1"]
[TimeControl "900+5"]

1. d4 {[%emt 0:00:00]} Nf6 {[%emt 0:00:04]} 2. c4 {[%emt 0:00:05]} e6 {[%emt 0:00:01]} 3. Nc3 {[%emt 0:00:02]} Bb4 {[%emt 0:00:02]} 4. e3 {[%emt 0:00:27]} b6 {[%emt 0:00:04]} 5. Nge2 {[%emt 0:00:04]} c5 {[%emt 0:00:02]} 6. a3 {[%emt 0:00:06]} Ba5 {[%emt 0:00:02]} 7. Rb1 {[%emt 0:00:11]} Na6 {[%emt 0:00:03]} 8. f3 {[%emt 0:00:31]} O-O {[%emt 0:00:28]} 9. Kf2 {[%emt 0:00:05]} d5 {[%emt 0:02:17]} 10. cxd5 {[%emt 0:00:34]} Bxc3 {[%emt 0:01:14]} 11. Nxc3 {[%emt 0:00:57]} exd5 {[%emt 0:00:39]} 12. dxc5 {[%emt 0:02:24]} bxc5 {[%emt 0:02:13]} 13. b4 {[%emt 0:00:14]} d4 {[%emt 0:02:01]} 14. exd4 {[%emt 0:00:10]} cxb4 {[%emt 0:00:43]} 15. axb4 {[%emt 0:00:07]} Nc7 {[%emt 0:00:05]} 16. Bc4 {[%emt 0:01:52]} Bf5 {[%emt 0:00:59]} 17. Rb2 {[%emt 0:00:33]} Nfd5 {[%emt 0:01:18]} 18. Nxd5 {[%emt 0:00:58]} Nxd5 {[%emt 0:00:03]} 19. Bxd5 {[%emt 0:01:26]} Qxd5 {[%emt 0:00:04]} 20. Be3 {[%emt 0:00:02]} Rfc8 {[%emt 0:00:31]} 21. Qd2 {[%emt 0:00:18]} Rc4 {[%emt 0:00:29]} 22. Rc1 {[%emt 0:00:19]} Rac8 {[%emt 0:00:18]} 23. Rxc4 {[%emt 0:00:07]} Rxc4 {[%emt 0:00:02]} 24. Ra2 {[%emt 0:01:02]} h6 {[%emt 0:01:41]} 25. Ra5 {[%emt 0:01:14]} Qxa5 {[%emt 0:00:48]} 26. bxa5 {[%emt 0:00:04]} Rc2 {[%emt 0:00:02]} 27. Qxc2 {[%emt 0:00:06]} Bxc2 {[%emt 0:00:02]} 28. a6 {[%emt 0:00:02]} Bd3 {[%emt 0:00:03]} 29. d5 {[%emt 0:00:07]} Bxa6 {[%emt 0:00:02]} 30. d6 {[%emt 0:00:04]} Kf8 {[%emt 0:00:06]} 31. Bxa7 {[%emt 0:00:05]} Ke8 {[%emt 0:00:02]} 32. Bc5 {[%emt 0:00:22]} Kd7 {[%emt 0:00:03]} 33. Ba3 {[%emt 0:00:06]} g6 {[%emt 0:00:07]} 34. h4 {[%emt 0:00:05]} Ke6 {[%emt 0:00:06]} 35. g3 {[%emt 0:00:09]} Bb5 {[%emt 0:00:28]} 36. Bb4 {[%emt 0:00:03]} Bc6 {[%emt 0:00:05]} 37. Ba3 {[%emt 0:00:03]} Bb5 {[%emt 0:00:10]} 38. Bb4 {[%emt 0:00:01]} Bc6 {[%emt 0:00:01]} 39. Ba3 {[%emt 0:00:02]} Bb5 {[%emt 0:00:02]} 1/2-1/2